Cogmind - Beta 17 @@@ ROGUE MODE // 2026.07.18 @ 20:26:46 Player: Arttano Result: Self-destructed Performance ------------- Evolutions (2) 1000 Regions Visited (5) 1000 Robots Destroyed (31) 155 Value Destroyed (772) 772 Prototype IDs (25) 500 Alien Tech Used (0) 0 Bonus (300) 300 TOTAL SCORE: 3727 Bonus ------- Aligned with FarCom 300 Cogmind --------- Core Integrity 305/550 Matter 290/300 Energy 139/265 System Corruption 1% Temperature Cool (0) Movement Core (450) Ox8 Location -8/Materials Parts ------- > --- POWER (1) -------- Improved Ion Engine > --- PROPULSION (4) --- (None) > --- UTILITY (4) ------ Large Storage Unit Modified TNC > --- WEAPON (2) ------- (None) > --- INVENTORY (15) --- Ion Engine Light Ion Engine Armored Wheel Flight Unit Medium Storage Unit Small Battery (100) Large Battery (200) Signal Interpreter ECM Suite ECM Suite Hammer Peak State ------------ > --- POWER ------------ Improved Ion Engine > --- PROPULSION ------- Light Treads Light Treads Armored Wheel > --- UTILITY ---------- Large Storage Unit Sensor Array Modified TNC Hardened Medium Armor Plating > --- WEAPON ----------- Assault Rifle Improved Grenade Launcher > --- INVENTORY -------- Ion Engine Light Ion Engine Improved Ion Engine Aluminum Leg Aluminum Leg Flight Unit Medium Storage Unit Small Battery Large Battery Medium Laser Light Assault Rifle Light Assault Rifle Light Assault Rifle Hammer [Rating: 22] Favorites ----------- Power Improved Ion Engine Engine Improved Ion Engine Propulsion Light Treads Treads Light Treads Leg Aluminum Leg Wheel Armored Wheel Utility Large Storage Unit Device Seismic Detector Storage Large Storage Unit Processor Modified TNC Protection Hardened Medium Armor Plating Weapon Assault Rifle Energy Gun Medium Laser Ballistic Gun Assault Rifle Launcher Improved Grenade Launcher Build | -11 -10 -10 -10 -9 -8 ------- Run | Yrd Mat Min Exi Min Mat Slots Evolved 4 | . . . . . 4 Power . | . . . . . . Propulsion 2 | . . . . . 2 Utility 2 | . . . . . 2 Weapon . | . . . . . . Parts Attached 19 | 1 6 2 1 . 9 Power 2 | . 1 . . . 1 Engine 2 | . 1 . . . 1 Core . | . . . . . . Reactor . | . . . . . . Propulsion 6 | . 2 . . . 4 Treads 2 | . 1 . . . 1 Leg 3 | . . . . . 3 Wheel 1 | . 1 . . . . Hover . | . . . . . . Flight . | . . . . . . Utility 6 | 1 2 . 1 . 2 Device 2 | 1 . . . . 1 Storage 2 | . 2 . . . . Processor 1 | . . . 1 . . Hackware . | . . . . . . Protection 1 | . . . . . 1 Artifact . | . . . . . . Weapon 5 | . 1 2 . . 2 Energy Gun . | . . . . . . Energy Cannon . | . . . . . . Ballistic Gun 4 | . 1 1 . . 2 Ballistic Cannon . | . . . . . . Launcher 1 | . . 1 . . . Special Weapon . | . . . . . . Impact Weapon . | . . . . . . Slashing Weapon . | . . . . . . Piercing Weapon . | . . . . . . Special Melee Weapon . | . . . . . . Unidentified Prototypes . | . . . . . . Parts Lost 14 | . . 1 . . 13 Power 1 | . . . . . 1 Propulsion 5 | . . . . . 5 Utility 3 | . . 1 . . 2 Weapon 5 | . . . . . 5 Highest Loss Streak 6 | . . 1 . . 6 To Critical Strikes . | . . . . . . Average Backups 9 | 6 7 7 9 13 13 Power 2 | 1 2 2 2 2 3 Propulsion 3 | 4 3 3 3 3 2 Utility 2 | . . 1 1 3 5 Weapon 2 | 1 1 1 3 4 2 Tool/Special . | . . . . . . Unused Backups 14 | . 5 . . . 9 Power 4 | . 3 . . . 1 Propulsion 1 | . . . . . 1 Utility 7 | . 2 . . . 5 Weapon 2 | . . . . . 2 Tool/Special . | . . . . . . Average Slot Usage (%) 90 | . 100 85 91 100 80 Engine 11 | . 14 14 14 14 5 Treads 11 | . 5 14 14 14 12 Leg 5 | . 16 . . . 7 Wheel 10 | . 5 14 14 14 7 Device 4 | . 14 . . . 4 Storage 12 | . 14 14 14 14 9 Processor 4 | . . . 5 14 9 Protection 2 | . . . . . 8 Energy Gun 3 | . 14 . . . . Ballistic Gun 15 | . 14 22 14 14 12 Launcher 6 | . . 5 14 14 4 Peak Build Rating 22 | 7 9 11 17 17 22 Average Rating 12 | 6 8 8 13 17 19 On Entrance 11 | 6 7 9 11 17 17 Avg Prop Armor Cover (%) 11 | . 12 11 11 11 14 Naked Turns . | . . . . . . Heaviest Build 44 | 15 32 35 35 35 44 Greatest Support 20 | 20 20 12 12 12 20 Greatest Overweight (x) 8 | . 2 2 2 2 8 Average Overweight (x) 1 | . 1 2 2 2 2 Largest Inventory Capacity 15 | 8 15 15 15 15 15 Average Capacity 14 | 8 13 15 15 15 15 Most Carried 15 | 7 8 9 11 15 15 Average Carried 9 | 6 6 7 9 13 13 Final Capacity 15 | 8 15 15 15 15 15 Final Carried 15 | 7 7 9 11 15 11 Class Distribution -------------------- 87% | Mutant 12% | Skirmisher Dominant Class ---------------- Mutant | -10/Materials Mutant | -10/Mines Mutant | -10/Exiles Mutant | -9/Mines Skirmisher | -8/Materials Resources | -11 -10 -10 -10 -9 -8 ----------- Run | Yrd Mat Min Exi Min Mat Matter Collected 752 | 231 . 159 . 107 255 Remotely . | . . . . . . Salvage Created 808 | 105 . 212 . 42 449 Parts 56 | 9 . 14 . 10 23 Haulers Intercepted . | . . . . . . Recyclers Shooed 1 | . . . . 1 . Parts Field Recycled . | . . . . . . Retrieved Matter . | . . . . . . Parts Self-Destructed . | . . . . . . Prevented . | . . . . . . Parts Restored . | . . . . . . Kills | -11 -10 -10 -10 -9 -8 ------- Run | Yrd Mat Min Exi Min Mat Combat Hostiles Destroyed 20 | . . 7 . 6 7 Guns 9 | . . 5 . . 4 AOE 11 | . . 2 . 6 3 Classes Destroyed 8 | 1 . 3 . . 4 Worker 1 | . . 1 . . . Builder 4 | . . . . . 4 Tunneler 4 | 4 . . . . . Recycler 1 | . . . . . 1 Watcher 1 | . . . . . 1 Swarmer 6 | . . 3 . 3 . Grunt 12 | . . 4 . 3 5 Sentry 2 | . . . . . 2 Best Kill Streak 6 | 4 . 3 . 6 6 Combat Bots Only 6 | . . 3 . 6 2 Max Kills in Single Turn 5 | 1 . 3 . 2 5 Gunslinging . | . . . . . . Exploded 2 | . . 2 . 2 2 Melee . | . . . . . . Uniques/NPCs Destroyed . | . . . . . . Combat | -11 -10 -10 -10 -9 -8 -------- Run | Yrd Mat Min Exi Min Mat Hostile Shots Fired 192 | . . 39 . 19 134 Missed 60 | . . 13 . 5 42 Hits 132 | . . 26 . 14 92 Projectile 132 | . . 26 . 14 92 Critical Strikes 5 | . . 1 . . 4 Damage Taken 1910 | . . 287 . 122 1501 Core 299 | . . 36 . 18 245 Absorbed by Shields . | . . . . . . Core Remaining (%) 89 | 100 . . . 78 . Volleys Fired 81 | 7 5 16 . 8 45 Largest 2 | 2 2 2 . 2 2 Hottest 70 | 70 70 70 . 56 43 Shots Fired 132 | 14 10 30 . 9 69 Gun 113 | 14 10 28 . 2 59 Cannon . | . . . . . . Launcher 19 | . . 2 . 7 10 Special . | . . . . . . Kinetic 100 | 7 5 27 . 2 59 Thermal 13 | 7 5 1 . . . Explosive 19 | . . 2 . 7 10 Electromagnetic . | . . . . . . Robot Hit Streak 9 | 6 9 9 . 4 7 Robot Miss Streak 3 | 2 2 3 . 1 3 Penetration Max . | . . . . . . Secondary Targets . | . . . . . . Shots Hit Robots 73 | 8 6 21 . 2 36 Core Hits 56 | 4 1 12 . 7 32 Critical Kills . | . . . . . . Critical Parts Destroyed 2 | . . 1 . . 1 Critical Strikes 4 | 1 . 2 . . 1 Burn 2 | 1 . 1 . . . Destroy 2 | . . 1 . . 1 Melee Attacks . | . . . . . . Impact . | . . . . . . Slashing . | . . . . . . Piercing . | . . . . . . Sneak Attacks . | . . . . . . Combat Hostiles . | . . . . . . Follow-up Attacks . | . . . . . . Damage Inflicted 2317 | 106 70 498 . 586 1057 Guns 747 | 106 70 208 . 10 353 Cannons . | . . . . . . Explosions 1570 | . . 290 . 576 704 Melee . | . . . . . . Ramming . | . . . . . . Kinetic 611 | 32 20 196 . 10 353 Thermal 136 | 74 50 12 . . . Explosive 1498 | . . 290 . 576 632 Electromagnetic 72 | . . . . . 72 Impact . | . . . . . . Slashing . | . . . . . . Piercing . | . . . . . . Highest Corruption 1 | . . . . . 1 Average Corruption 1 | . . . . . 1 Corruption Purged . | . . . . . . Corruption Blocked . | . . . . . . Effects 1 | . . . . . 1 Misfires 1 | . . . . . 1 Overload Shots . | . . . . . . Overflow Damage 58 | . . . . 36 22 Projectiles . | . . . . . . Explosions 58 | . . . . 36 22 Melee . | . . . . . . Knockbacks . | . . . . . . Impact . | . . . . . . Kinetic . | . . . . . . Secondary . | . . . . . . Self-Inflicted Damage 75 | . . . . . 75 Shots 3 | . . . . . 3 Rammed . | . . . . . . Targets Rammed . | . . . . . . Kicked . | . . . . . . Crushed . | . . . . . . Highest Temperature 58 | 36 58 55 . 9 43 Average Temperature 14 | 17 26 12 . 5 12 Received Heat Transfer 768 | . . 126 . 30 612 Siege Activations . | . . . . . . Martial Activations . | . . . . . . Shielding Activations . | . . . . . . Robots Disrupted 1 | . . . . . 1 Combat Hostiles 1 | . . . . . 1 Robots Corrupted . | . . . . . . Combat Hostiles . | . . . . . . Parts Fried . | . . . . . . Impact Corruptions . | . . . . . . Robots Melted . | . . . . . . Combat Hostiles . | . . . . . . Parts Melted . | . . . . . . Heat Transferred 555 | 296 148 111 . . . Parts Sabotaged . | . . . . . . Parts Stolen . | . . . . . . Parts Stripped . | . . . . . . Power Chain Reactions . | . . . . . . Alert | -11 -10 -10 -10 -9 -8 ------- Run | Yrd Mat Min Exi Min Mat Maximum Alert Level . | . . . . . . Low Security (%) 100 | 100 100 100 . 100 100 Level 1 . | . . . . . . Level 2 . | . . . . . . Level 3 . | . . . . . . Level 4 . | . . . . . . Level 5 . | . . . . . . High Security . | . . . . . . Max Security . | . . . . . . Peak Influence 156 | 10 8 95 . 156 134 Initial 33 | . . 3 . . 33 Average 41 | . . 35 . 103 68 Influence Increases 763 | 20 8 208 . 176 351 Destroy 0b10 Robot/C 400 | . . 140 . 120 140 Destroy 0b10 Robot/NC 55 | 20 . 5 . . 30 Destroy Leader 72 | . . 30 . 10 32 Allied During Kill 3 | . . 3 . . . Successful Hack 22 | . 8 . . . 14 Disable Machine 45 | . . . . . 45 Destroy Structure 121 | . . 15 . 46 60 Lose Combat Pursuer 45 | . . 15 . . 30 Influence Decreases 723 | 20 . 161 55 90 397 Entered New Map 113 | . . 5 55 . 53 Time Decay 477 | 20 . 153 . 90 214 Lost Part 133 | . . 3 . . 130 Squads Dispatched 5 | . 1 1 . . 3 Investigation 1 | . . 1 . . . Extermination . | . . . . . . Reinforcement 4 | . 1 . . . 3 Assault . | . . . . . . Garrison . | . . . . . . Intercept . | . . . . . . Searches Triggered . | . . . . . . Construction Impeded 1 | . . . . . 1 Haulers Reinforced . | . . . . . . Active Scanning Responses . | . . . . . . Cargo Convoy Interrupts . | . . . . . . Stealth | -11 -10 -10 -10 -9 -8 --------- Run | Yrd Mat Min Exi Min Mat Distress Signals 2 | . . . . . 2 Communications Jammed . | . . . . . . Distress Signals . | . . . . . . Times Spotted 36 | . 2 8 . 7 19 Peak Tracking Total 4 | . 1 3 . 4 4 Tactical Retreats 3 | . . 1 . . 2 Traps | -11 -10 -10 -10 -9 -8 ------- Run | Yrd Mat Min Exi Min Mat Traps Triggered . | . . . . . . Indirectly . | . . . . . . Trap Hack Attempts . | . . . . . . Triggered . | . . . . . . Disarmed . | . . . . . . Reprogrammed . | . . . . . . Reused . | . . . . . . Traps Extracted . | . . . . . . Installed . | . . . . . . Triggered . | . . . . . . Machines | -11 -10 -10 -10 -9 -8 ---------- Run | Yrd Mat Min Exi Min Mat Machines Disabled 3 | . . . . . 3 Max in Single Turn 2 | . . . . . 2 Machines Repaired . | . . . . . . Machines Dismantled . | . . . . . . Machines Sabotaged . | . . . . . . Overloaded Fab Kills . | . . . . . . Hacking | -11 -10 -10 -10 -9 -8 --------- Run | Yrd Mat Min Exi Min Mat Machines Accessed 8 | . 3 1 2 . 2 Terminals 5 | . 3 . . . 2 Fabricators . | . . . . . . Repair Stations . | . . . . . . Recycling Units . | . . . . . . Scanalyzers . | . . . . . . Garrison Access . | . . . . . . Total Hacks 19 | . 7 1 6 . 5 Successful 13 | . 5 1 6 . 1 Failed 6 | . 2 . . . 4 Catastrophic . | . . . . . . Database Lockouts . | . . . . . . Manual 6 | . 3 . 1 . 2 Terminals 12 | . 7 . . . 5 Fabricators . | . . . . . . Repair Stations . | . . . . . . Recycling Units . | . . . . . . Scanalyzers . | . . . . . . Garrison Access . | . . . . . . Terminal Hacks 12 | . 4 1 6 . 1 Record 5 | . . . 5 . . Prototype ID Bank 1 | . 1 . . . . Open Door 1 | . . 1 . . . Branch Access Points 1 | . 1 . . . . Recall Investigation 1 | . 1 . . . . Hauler Manifests 2 | . 1 . . . 1 Proto ID Catalog 1 | . . . 1 . . Fabricator Hacks . | . . . . . . Repair Station Hacks . | . . . . . . Recycling Unit Hacks . | . . . . . . Scanalyzer . | . . . . . . Garrison Access Hacks . | . . . . . . Unauthorized Hacks 1 | . 1 . . . . Terminals 1 | . 1 . . . . Operators 1 | . 1 . . . . Fabricators . | . . . . . . Repair Stations . | . . . . . . Recycling Units . | . . . . . . Scanalyzers . | . . . . . . Garrison Access . | . . . . . . Data Cores Recovered . | . . . . . . Used . | . . . . . . Hacking Detections 4 | . 2 . . . 2 Full Trace Events 1 | . 1 . . . . Feedback Events . | . . . . . . Feedback Blocked . | . . . . . . Robot Schematics Acquired . | . . . . . . Robots Built . | . . . . . . Authchips . | . . . . . . Time . | . . . . . . Total Robot Build Rating . | . . . . . . Part Schematics Acquired . | . . . . . . Parts Built . | . . . . . . Authchips . | . . . . . . Time . | . . . . . . Total Part Build Rating . | . . . . . . Part Studies Acquired . | . . . . . . Parts Repaired . | . . . . . . Time . | . . . . . . Parts Recycled . | . . . . . . Recycled Matter . | . . . . . . Retrieved Matter . | . . . . . . Retrieved Components . | . . . . . . Parts Scanalyzed . | . . . . . . Part Schematics Acquired . | . . . . . . Parts Damaged . | . . . . . . Bothacking | -11 -10 -10 -10 -9 -8 ------------ Run | Yrd Mat Min Exi Min Mat Used RIF Installer . | . . . . . . Robots Hacked . | . . . . . . Non-combat . | . . . . . . Combat . | . . . . . . Robot Hacks Applied . | . . . . . . Relay Couplers Released . | . . . . . . Fabnet Peak Effective % . | . . . . . . Robots Rewired . | . . . . . . Allies Hacked . | . . . . . . Hacks Repelled . | . . . . . . Allies | -11 -10 -10 -10 -9 -8 -------- Run | Yrd Mat Min Exi Min Mat Total Allies 1 | . . 1 . . . Largest Group 1 | . . 1 1 . . Highest-Rated Group 31 | . . 31 31 . . Highest-Rated Ally 31 | . . 31 31 . . Total Orders . | . . . . . . Ally Attacks . | . . . . . . Total Damage . | . . . . . . Kills . | . . . . . . Allies Corrupted . | . . . . . . Allies Melted . | . . . . . . Intel | -11 -10 -10 -10 -9 -8 ------- Run | Yrd Mat Min Exi Min Mat Active Infowar (turns) 1204 | 31 391 4 149 186 443 Sensors 223 | . . . . . 223 Seismic 426 | 31 391 4 . . . T.N.C. 778 | . . . 149 186 443 Robot Analysis Total . | . . . . . . Derelict Logs Recovered 1 | . . 1 . . . Drone Launches . | . . . . . . Drone Recoveries . | . . . . . . Exploration | -11 -10 -10 -10 -9 -8 ------------- Run | Yrd Mat Min Exi Min Mat Turns Passed 1896 | 115 391 411 350 186 443 Spaces Moved 1259 | 77 252 285 289 138 218 Core 1 | . . . . . 1 Treads . | . . . . . . Legs 239 | 77 135 . . . 27 Wheels 1019 | . 117 285 289 138 190 Hover . | . . . . . . Flight . | . . . . . . Fastest Speed 120 | 120 120 120 120 120 120 Average Speed 127 | 120 140 120 120 120 139 Slowest Speed 450 | 120 190 120 120 120 450 Overloaded Moves . | . . . . . . Propulsion Burnouts . | . . . . . . Robots Hopped . | . . . . . . Potential Cave-ins . | . . . . . . Cave-ins Triggered . | . . . . . . Exploration Rate (%) 34 | 3 40 53 61 30 19 Regions Visited 5 Branch Regions 3 Pre-discovered Areas 2 | . . . 1 1 . Known Exits Taken 1 | . 1 . . . . Unknown Exits Taken 4 | 1 . 1 1 1 . Scrap Searched 2 | . . 1 . 1 . Spaces Dug . | . . . . . . Terrain Destroyed 158 | . . 17 . 66 75 Melee . | . . . . . . Projectile . | . . . . . . AOE 158 | . . 17 . 66 75 Terrain Rammed . | . . . . . . Walls Destroyed . | . . . . . . Machines Disabled . | . . . . . . Actions | -11 -10 -10 -10 -9 -8 --------- Run | Yrd Mat Min Exi Min Mat Total 1425 | 85 278 326 291 149 296 Wait 47 | . 8 22 . . 17 Move 1254 | 76 251 284 288 137 218 Hop . | . . . . . . Pick Up 15 | 1 3 2 2 4 3 Fast Attach 6 | 1 . . 1 . 4 Attach 6 | . . . . . 6 Detach 1 | . . . . . 1 Swap 8 | . 6 2 . . . Drop 7 | . 5 . . . 2 Fire 81 | 7 5 16 . 8 45 Melee . | . . . . . . Ram . | . . . . . . Kick . | . . . . . . Crush . | . . . . . . Escape Stasis . | . . . . . . Rewire . | . . . . . . Trap . | . . . . . . Miscellaneous . | . . . . . . Route ------- -11/Scrapyard -10/Materials (discovered 2 exits: *Min x2) -10/Mines (discovered 2 exits: [*Mat] / *Exi) -10/Exiles -9/Mines -8/Materials History --------- Turn | Location | Event 1 | -11/Scrapyard | Discovered new exit (range 3) 116 | -11/Scrapyard | Entered Materials 119 | -10/Materials | Identified exit to Mines 317 | -10/Materials | Build established: Mutant 507 | -10/Materials | Entered Mines 518 | -10/Mines | Learned 2 Materials zone layouts 522 | -10/Mines | Discovered new exit (range 8) 528 | -10/Mines | Met a Derelict bent on vengeance 682 | -10/Mines | Escorted by a lone wolf Derelict 742 | -10/Mines | Met a Derelict shopkeep closing up shop 914 | -10/Mines | Deemed a non-threat by the Exiles lab entrance 914 | -10/Mines | Discovered new exit (range 5) 918 | -10/Mines | Entered Exiles 918 | -10/Exiles | Accompanied by 1 ally 948 | -10/Exiles | Met 8R-AWN 969 | -10/Exiles | Met EX-HEX 1002 | -10/Exiles | Met EX-BIN 1080 | -10/Exiles | Aligned with FarCom system 1082 | -10/Exiles | Given EX-Vault access code 1109 | -10/Exiles | Opened EX-Vault 1119 | -10/Exiles | Found Modified TNC 1147 | -10/Exiles | Warned to stay clear of 0b10 Research branches 1183 | -10/Exiles | Met EX-DEC 1188 | -10/Exiles | Learned location of Zion (-6) 1254 | -10/Exiles | Discovered new exit (range 12) 1268 | -10/Exiles | Left Exiles lab with Modified TNC 1268 | -10/Exiles | Entered Mines 1280 | -9/Mines | Learned location of Storage (-7) 1299 | -9/Mines | Discovered new exit (range 14) 1454 | -9/Mines | Entered Materials 1454 | -8/Materials | Evolved 4 slots: Propulsion x2, Utility x2 1681 | -8/Materials | Lost 3 parts (1n2w) 1897 | -8/Materials | Self-destructed Last Messages --------------- 01867_ O-24 Administrator uses terminal to summon reinforcements. 01867_ ALERT: Hostiles spotted, dispatching reinforcements to Terminal M010. 01867_ O-24 Administrator locks terminal. 01870_ Material Processor disabled. 01871_ Slug penetrates Wall. 01876_ Hrd. Medium Armor Plating destroyed. 01877_ Slug penetrates Wall. 01880_ Aluminum Leg destroyed. 01881_ Wall collapses. 01883_ Penetrated by Slug. 01883_ Lgt. Treads destroyed. 01886_ Penetrated by Slug. 01886_ Hvy. Assault Rifle destroyed. 01889_ Penetrated by Slug. 01889_ Lgt. Assault Rifle destroyed. 01890_ Aluminum Leg destroyed. 01892_ Penetrated by Slug. 01894_ Critical hit (Burn: +37). Map ----- +----------------------------------------------------+ | #??# # """ #????## ##??????????????????? | | ?"""#??# + """ ###### ##?????????????????? | | ?"""#??# # # %! ??????????????????? | | ??""#??# # # ## ## | | ?? #?## ##### # # =! ## ## | | ###+### ### # # = ?# ## """ """ | | # ! #?#+######### """ """ | | + #?# ######### """ """ | | # #?# # !! # | | ####### # # #?# # !! !######### | | ??????## # #####+###### # # #?# | | ???????# ### # ### / #?# | | ???????## #?# ####?# gr##### # ]% % #### | | ????????# #?# #????# #???# ######### ## | | ????????# #?############ #???# #??# | | ????????#+#???# """ # #####+###### % # | | ??????????????# """"" # # ## % # | | ??????????????# """"" # # ## # | | ??????????????# """"" # # ## | | ??????????????# # # ## # | | ??????????????# # # ## # | | ?a????????????# og% # ## # | | ??????????????# "T" ;h% #? ## * ### | | ??????????????# """ # #? ######/####?? | | ??????????????########## #####+######## #??? | | ???????????????????????# @ #??? | | ???????????????????????# #??? | | ???????????????????????# #??? | | ???????????????????????+ ############## #??? | | ???????????????????????# #????????????## ##??? | | ???????????????????????# #?????????????# #???? | | ???????????????????????# g#?????????????# #???? | | ???????????????????????# o ?????????????# #???? | | ???????????????????????# ?????????????# #???? | | ???????????????????????# g?????????????# #???? | | ???????????????????????# ????????????# #???? | | ???????????????????????# """???????????? ???? | | ???????????????????????# """???????????? ???? | | ???????????????????????# ????????????? #??? | | ??????????????????????? = ? ????????????? #??? | | ???????????????????????? ? ????????????? #??? | | ??????????????????????????????????????????####???? | | ?????????????????????????????????????????????????? | | ?????????????????????????????????????????????????? | | ?????????????????????????????????????????????????? | | ?????????????????????????????????????????????????? | | ?????????????????????????????????????????????????? | | ?????????????????????????????????????????????????? | | ?????????????????????????????????????????????????? | | ?????????????????????????????????????????????????? | +----------------------------------------------------+ Best States ------------- Heat Dissipation 31 Energy Generation 12 Energy Capacity 265 Matter Stores 300 Matter Capacity 300 Sight Range 16 Robot Scan Range 14 Terrain Scan Density 10 Armor Coverage 225 Evasion (%) 55 Item Schematics ----------------- None Robot Schematics ------------------ None Fabricated ------------ Nothing Repaired ---------- Nothing Studied --------- None Alien Tech Used ----------------- None Achievements -------------- None Challenges ------------ None Game ------ Seed DeuteriumElectronGravjet Manual? 0 Play Time 00:29:22 Cumulative 18.7 hours Start 2026.07.18 @ 19:42:31 End 2026.07.18 @ 20:26:46 Sessions 39 Manual Loads 0 Difficulty Rogue Special Mode None Game No. 25 Rogue 25 Adventurer 0 Explorer 0 Win Type - Total 0 Types 0/0/0/0/0/0/0/0/0/0 Lore% 19 Gallery% 15 Achievement% 16 Wizard Run 0 Options --------- Layout 2 ASCII 0 Keyboard 1 Movement Numpad Keybinds 1 Fullscreen 2 Font 24/Terminus Map View 50x44 Zoom Use 0% Tactical HUD 1 Map Filters NONE Filters LOW_CONTRAST(15,5,5)|SATURATION(90)|BRIGHTNESS(90) Steam 1 RUN: dc183832-05fd-4ba6-9b64-e0574acfe10e